bitfinex-derivatives/quotes_BTCF0:USTF0_20241010
["timestamp","ask_amount","ask_price","bid_price","bid_amount"]
[1728581883588,0.19,60209.0,60208.0,0.1505217]
[1728581883786,0.19,60209.0,60208.0,0.1515217]
[1728581883987,0.19,60209.0,60208.0,0.085121]
[1728581884195,0.006,60211.0,60210.0,0.083121]
[1728581884380,0.006,60211.0,60210.0,0.443921]
[1728581884691,0.083111,60218.0,60217.0,0.083111]
[1728581884888,0.083111,60218.0,60217.0,0.49367217]
[1728581885091,0.083111,60218.0,60217.0,0.443911]
[1728581885296,0.19,60219.0,60218.0,0.08311]
[1728581885481,0.19,60219.0,60218.0,0.1328346]
[1728581885688,0.19,60219.0,60218.0,0.08311]
[1728581885889,0.19,60219.0,60218.0,0.18961]
[1728581886385,0.19,60223.0,60222.0,0.083105]
[1728581886587,0.19,60226.0,60222.0,0.443905]
[1728581886789,0.273094,60230.0,60225.0,0.0831]
[1728581886991,0.273094,60230.0,60229.0,0.083095]
[1728581886992,0.19,60230.0,60229.0,0.083095]
[1728581887595,0.19,60233.0,60232.0,0.083091]
[1728581887790,0.19,60233.0,60232.0,0.443891]
[1728581888686,0.204,60233.0,60232.0,0.444891]
[1728581889092,0.32779432,60233.0,60232.0,0.36270459]
[1728581889990,0.47543327,60233.0,60232.0,0.36270459]
[1728581890186,0.48143327,60233.0,60232.0,0.36370459]
[1728581890394,0.28278985,60233.0,60232.0,0.36370459]
[1728581890599,0.28278985,60233.0,60228.0,0.01588332]
[1728581890902,0.083108,60220.0,60219.0,0.083109]
[1728581891091,0.42064243,60220.0,60219.0,0.083109]
[1728581891403,0.34589687,60220.0,60219.0,0.083109]
[1728581892994,0.39691287,60220.0,60219.0,0.083109]
[1728581893399,0.39891287,60220.0,60219.0,0.083109]
[1728581894100,0.55040814,60220.0,60219.0,0.089109]
[1728581894605,0.55541282,60220.0,60219.0,0.085109]
[1728581894799,0.27630482,60220.0,60219.0,0.084109]
[1728581895004,0.16392715,60223.0,60219.0,0.943069]
[1728581895195,0.083101,60225.0,60224.0,0.083102]
[1728581895395,0.083101,60225.0,60219.0,0.3608]
[1728581895396,0.3608,60230.0,60226.0,0.083099]
[1728581895703,0.083098,60227.0,60226.0,0.083099]
[1728581897204,0.3608,60230.0,60226.0,0.581219]
[1728581897505,0.3608,60230.0,60227.0,0.2044]
[1728581898010,0.634885,60236.0,60235.0,0.083087]
[1728581898207,0.633885,60236.0,60235.0,0.083087]
[1728581899408,0.633805,60236.0,60235.0,0.083087]
[1728581900193,0.633805,60236.0,60235.0,0.085087]
[1728581900194,0.648805,60236.0,60235.0,0.085087]
[1728581903500,0.56572,60236.0,60235.0,0.085087]
[1728581903701,0.015,60236.0,60235.0,0.085087]
[1728581903902,0.015,60236.0,60235.0,0.275087]
[1728581904105,0.083075,60244.0,60243.0,0.083076]
[1728581904304,0.37698705,60245.0,60238.0,0.083082]
[1728581904305,0.3608,60245.0,60244.0,0.083074]
[1728581904803,0.443873,60245.0,60244.0,0.083074]
[1728581906005,0.443873,60245.0,60243.0,0.001]
[1728581906206,0.083074,60244.0,60243.0,0.001]
[1728581906404,0.083074,60244.0,60232.0,0.37662375]
[1728581906405,0.083081,60240.0,60232.0,0.3608]
[1728581906707,0.083092,60233.0,60232.0,0.08309]
[1728581908611,0.083092,60233.0,60228.0,0.04949899]
[1728581908913,0.12084496,60237.0,60223.0,0.0495595]
[1728581908914,0.273095,60229.0,60223.0,0.0495595]
[1728581909208,0.273095,60229.0,60215.0,0.08249833]
[1728581909209,0.083107,60220.0,60219.0,0.1326685]
[1728581909406,0.19,60222.0,60217.0,0.0495595]
[1728581909605,0.27311,60218.0,60217.0,0.083111]
[1728581910005,0.083116,60215.0,60214.0,0.083115]
[1728581910211,0.273116,60215.0,60214.0,0.083115]
[1728581910506,0.19,60215.0,60214.0,0.083115]
[1728581911514,0.19,60215.0,60214.0,0.1326745]
[1728581911705,0.191,60215.0,60214.0,0.1436745]
[1728581911905,0.274114,60215.0,60214.0,0.1436745]
[1728581912304,0.273114,60215.0,60214.0,0.1336745]
[1728581912519,0.273114,60215.0,60214.0,0.084115]
[1728581912910,0.273114,60215.0,60214.0,0.13376496]
[1728581913221,0.273114,60215.0,60214.0,0.14276496]
[1728581913518,0.273114,60215.0,60214.0,0.093115]
[1728581913707,0.273114,60215.0,60214.0,0.01]
[1728581913902,0.273114,60215.0,60213.0,0.06848941]
[1728581913903,0.083116,60214.0,60213.0,0.00249075]
[1728581914622,0.581356,60214.0,60213.0,0.00233075]
[1728581914919,0.083131,60203.0,60197.0,0.06599866]
[1728581915213,0.083139,60197.0,60196.0,0.14913766]
[1728581915413,0.19,60198.0,60194.0,0.06599866]
[1728581915618,0.19,60198.0,60197.0,0.083139]
[1728581915806,0.273138,60198.0,60197.0,0.083139]
[1728581916617,0.19,60198.0,60197.0,0.083139]
[1728581917612,0.273138,60198.0,60197.0,0.083139]
[1728581917914,0.273138,60198.0,60197.0,0.097139]
[1728581918108,0.19,60198.0,60197.0,0.097139]
[1728581918516,0.19,60198.0,60197.0,0.110139]
[1728581919821,0.273138,60198.0,60197.0,0.110139]
[1728581920114,0.19,60198.0,60197.0,0.110139]
[1728581920319,0.273138,60198.0,60197.0,0.110139]
[1728581920727,0.19,60198.0,60197.0,0.110139]
[1728581921115,0.273138,60198.0,60197.0,0.110139]
[1728581923826,0.19,60198.0,60197.0,0.110139]
[1728581924625,0.273138,60198.0,60197.0,0.110139]
[1728581926117,0.3608,60201.0,60200.0,0.083135]
[1728581926318,0.19,60205.0,60203.0,0.083131]
[1728581926319,0.08313,60204.0,60203.0,0.083131]
[1728581927627,0.08313,60204.0,60203.0,0.092131]
[1728581928430,0.083125,60207.0,60205.0,0.083128]
[1728581928918,0.443927,60206.0,60205.0,0.083128]
[1728581929118,0.443927,60206.0,60205.0,0.187628]
[1728581929318,0.443927,60206.0,60205.0,0.187588]
[1728581930434,0.443927,60206.0,60205.0,0.194588]
[1728581930625,0.443927,60206.0,60205.0,0.199588]
[1728581934421,0.443927,60206.0,60205.0,0.012]
[1728581936633,1.57908,60206.0,60196.0,0.08314]
[1728581936932,0.633939,60197.0,60196.0,0.08314]
[1728581937818,0.633939,60197.0,60192.0,0.06599866]
[1728581937819,0.5508,60197.0,60192.0,0.06599866]
[1728581938021,0.083147,60191.0,60190.0,0.190048]
[1728581938226,0.083147,60191.0,60188.0,0.14914966]
[1728581938227,0.08315,60189.0,60188.0,0.14914966]
[1728581938427,0.08315,60189.0,60188.0,0.083151]
[1728581938932,0.083153,60187.0,60186.0,0.08249833]
[1728581939127,0.273153,60187.0,60186.0,0.16565233]
[1728581939331,0.273153,60187.0,60186.0,0.20201561]
[1728581939631,0.273153,60187.0,60186.0,0.28494051]
[1728581940331,0.274153,60187.0,60186.0,0.2160141]
[1728581940733,0.275153,60187.0,60186.0,0.2280141]
[1728581940937,0.083149,60190.0,60186.0,0.4180141]
[1728581941229,0.3608,60192.0,60191.0,0.083147]
[1728581942436,0.3608,60192.0,60191.0,0.28495941]
[1728581942937,0.3192001,60192.0,60191.0,0.28495941]
[1728581943244,0.083147,60191.0,60189.0,0.08294195]
[1728581943530,0.273149,60190.0,60189.0,0.16615524]
[1728581943733,0.273149,60190.0,60189.0,0.28485433]
[1728581944530,0.273149,60190.0,60189.0,0.12869909]
[1728581944732,0.273149,60190.0,60189.0,0.01]
[1728581944930,0.463149,60190.0,60189.0,0.06642093]
[1728581945233,0.463149,60190.0,60189.0,0.019]
[1728581945234,0.464149,60190.0,60189.0,0.019]
[1728581945433,0.274149,60190.0,60189.0,0.019]
[1728581945829,0.464149,60190.0,60189.0,0.019]
[1728581946925,0.274149,60190.0,60189.0,0.019]
[1728581947323,0.464149,60190.0,60189.0,0.019]
[1728581947934,0.274149,60190.0,60189.0,0.019]
[1728581948736,0.084149,60190.0,60189.0,0.019]
[1728581948941,0.274149,60190.0,60189.0,0.019]
[1728581949139,0.2899477,60190.0,60189.0,0.019]
[1728581950230,0.2899477,60190.0,60189.0,0.10215]
[1728581950231,0.001,60190.0,60189.0,0.10215]
[1728581950633,0.001,60190.0,60189.0,0.16857093]
[1728581951031,0.084149,60190.0,60189.0,0.16857093]
[1728581951431,0.084149,60190.0,60189.0,0.10215]
[1728581953236,0.3192001,60192.0,60191.0,0.083147]
[1728581953541,0.19,60198.0,60195.0,0.083139]
[1728581953542,0.083141,60196.0,60195.0,0.083139]
[1728581954735,0.083141,60196.0,60195.0,0.089139]
[1728581955540,0.083141,60196.0,60195.0,0.15545656]
[1728581955746,0.083141,60196.0,60195.0,0.15845656]
[1728581955945,0.083141,60196.0,60195.0,0.092139]
[1728581958743,0.083141,60196.0,60195.0,0.009]
[1728581960042,0.083141,60196.0,60195.0,0.092142]
[1728581960537,0.083141,60196.0,60195.0,0.009]
[1728581962945,0.3608,60197.0,60195.0,0.009]
[1728581963144,0.443939,60197.0,60196.0,0.18804]
[1728581963455,0.443939,60197.0,60196.0,0.25435756]
[1728581963637,0.083139,60197.0,60196.0,0.25435756]
[1728581964252,0.083139,60197.0,60196.0,0.08814]
[1728581964447,0.443939,60197.0,60196.0,0.005]
[1728581965746,0.750639,60197.0,60196.0,0.005]
[1728581965946,0.750639,60197.0,60196.0,0.007]
[1728581974458,0.643639,60197.0,60196.0,0.007]
[1728581975558,0.753639,60197.0,60196.0,0.007]
[1728581978252,1.114439,60197.0,60196.0,0.007]
[1728581983056,1.016139,60197.0,60196.0,0.007]
[1728581983265,0.914739,60197.0,60196.0,0.007]
[1728581984964,0.804739,60197.0,60196.0,0.007]
[1728581985158,0.804739,60197.0,60196.0,0.09014]
[1728581985564,0.804739,60197.0,60196.0,0.007]
[1728581990671,0.805739,60197.0,60196.0,0.005]
[1728581990857,0.805739,60197.0,60196.0,0.001]
[1728581992664,0.805739,60197.0,60196.0,0.1054]
[1728581994168,0.805739,60197.0,60196.0,0.001]
[1728582001380,0.83786072,60197.0,60196.0,0.001]
[1728582002579,0.83786075,60197.0,60196.0,0.001]
[1728582005583,0.47706075,60197.0,60196.0,0.08414]
[1728582006080,0.47706075,60197.0,60196.0,0.001]
[1728582008276,0.444939,60197.0,60196.0,0.06731756]
[1728582009581,0.444939,60197.0,60196.0,0.001]
[1728582009876,0.444939,60197.0,60196.0,0.06731756]
[1728582010480,0.574939,60197.0,60196.0,0.001]
[1728582010678,0.574939,60197.0,60196.0,0.06750746]
[1728582010877,0.444939,60197.0,60196.0,0.06750628]
[1728582011782,0.444939,60197.0,60196.0,0.001]
[1728582012176,0.444939,60197.0,60196.0,0.06750628]
[1728582012376,0.444939,60197.0,60196.0,0.001]
[1728582013675,0.444939,60197.0,60196.0,0.06750628]
[1728582014480,0.444939,60197.0,60196.0,0.001]
[1728582016177,0.083153,60187.0,60181.0,0.00249203]
[1728582016377,0.083163,60180.0,60179.0,0.0830199]
[1728582016579,0.083169,60175.0,60174.0,0.0936]
[1728582016780,0.1152964,60175.0,60174.0,0.0936]
[1728582016987,0.2452964,60175.0,60174.0,0.176771]
[1728582017485,0.2452964,60175.0,60174.0,0.0936]
[1728582017688,0.2452964,60175.0,60174.0,0.176771]
[1728582017890,0.2452964,60175.0,60174.0,0.0936]
[1728582018078,0.2452964,60175.0,60174.0,0.176771]
[1728582018392,0.273169,60175.0,60174.0,0.176771]
[1728582018582,0.30529785,60175.0,60174.0,0.176771]
[1728582019181,0.46175309,60175.0,60174.0,0.0154]
[1728582019401,0.3470305,60175.0,60174.0,0.0154]
[1728582020381,0.42138189,60175.0,60174.0,0.0154]
[1728582021284,0.42138084,60175.0,60174.0,0.0154]
[1728582021483,0.42132561,60175.0,60174.0,0.0154]
[1728582021984,0.30629785,60175.0,60174.0,0.0154]
[1728582022186,0.083182,60166.0,60165.0,0.0935]
[1728582022374,0.083186,60163.0,60162.0,0.1932]
[1728582022580,0.0004,60163.0,60162.0,0.276387]
[1728582022786,0.0004,60163.0,60162.0,1.375027]
[1728582022981,0.0004,60163.0,60162.0,1.565027]
[1728582023182,0.0004,60163.0,60162.0,0.466387]
[1728582023483,0.0004,60166.0,60165.0,0.083183]
[1728582024285,0.19108,60168.0,60167.0,0.08318]
[1728582024484,0.09917246,60172.0,60167.0,0.08318]
[1728582024485,0.083175,60172.0,60167.0,0.08318]
[1728582025587,0.001,60168.0,60167.0,0.08318]
[1728582025795,0.001,60168.0,60167.0,0.09518]
[1728582025988,0.084175,60172.0,60167.0,0.09518]
[1728582026187,0.085175,60172.0,60171.0,0.083175]
[1728582026692,0.084175,60172.0,60171.0,0.083175]
[1728582027792,0.083175,60172.0,60171.0,0.083175]
[1728582028693,0.084175,60172.0,60171.0,0.092175]
[1728582028884,0.085175,60172.0,60171.0,0.100175]
[1728582029084,0.002,60172.0,60171.0,0.100175]
[1728582029288,0.083159,60183.0,60171.0,1.11556]
[1728582029592,0.273158,60184.0,60183.0,0.083158]
[1728582031588,0.2889258,60184.0,60183.0,0.083158]
[1728582031786,0.2889258,60184.0,60179.0,0.083163]
[1728582031993,0.19,60180.0,60179.0,0.083163]
[1728582033086,0.19,60180.0,60179.0,0.086163]
[1728582033287,0.273163,60180.0,60179.0,0.086163]
[1728582033498,0.273163,60180.0,60179.0,0.083163]
[1728582033700,0.19,60180.0,60179.0,0.086163]
[1728582033998,0.273163,60180.0,60179.0,0.086163]
[1728582034203,0.083163,60180.0,60179.0,0.086163]
[1728582034694,0.083163,60180.0,60179.0,0.087163]
[1728582036303,0.823963,60180.0,60179.0,0.004]
[1728582037203,0.633963,60180.0,60179.0,0.004]
[1728582038100,0.823963,60180.0,60179.0,0.004]
[1728582038297,0.633963,60180.0,60179.0,0.004]
[1728582039404,0.633963,60180.0,60179.0,0.087164]
[1728582039405,0.3608,60180.0,60179.0,0.087164]
[1728582039604,0.08316,60182.0,60181.0,0.083158]
[1728582040404,0.3608,60184.0,60179.0,0.004]
[1728582040597,0.083159,60183.0,60179.0,0.001]
[1728582040905,0.01878307,60185.0,60179.0,0.001]
[1728582041204,0.00249328,60185.0,60184.0,0.083157]
[1728582041503,0.083144,60194.0,60193.0,0.083143]
[1728582042195,0.273144,60194.0,60193.0,0.083143]
[1728582042796,0.278144,60194.0,60190.0,0.1878]
[1728582043000,0.083147,60191.0,60190.0,0.270948]
[1728582043702,0.083157,60184.0,60183.0,0.443958]
[1728582044001,0.273157,60184.0,60183.0,0.443958]
[1728582045006,0.273157,60184.0,60183.0,0.446958]
[1728582045702,0.276157,60184.0,60183.0,0.443958]
[1728582046504,0.278157,60184.0,60183.0,0.443958]
[1728582047002,0.278157,60184.0,60183.0,0.3608]
[1728582048108,0.278157,60184.0,60183.0,0.443958]
[1728582050606,0.005,60184.0,60183.0,0.443958]
[1728582051109,0.005,60184.0,60183.0,1.542438]
[1728582051809,0.003,60184.0,60183.0,1.542438]
[1728582052307,0.003,60184.0,60183.0,1.547438]
[1728582052308,0.002,60184.0,60183.0,1.547438]
[1728582052507,0.001,60184.0,60183.0,1.549438]
[1728582052806,0.633957,60184.0,60183.0,0.002]
[1728582053010,0.923957,60184.0,60183.0,0.005]
[1728582053207,0.823957,60184.0,60183.0,0.005]
[1728582053408,0.083164,60179.0,60178.0,0.00249255]
[1728582053603,0.083171,60174.0,60173.0,0.3608]
[1728582053906,0.273171,60174.0,60173.0,0.3608]
[1728582054811,0.273171,60174.0,60170.0,0.083175]
[1728582054812,0.083175,60171.0,60170.0,0.083175]
[1728582055113,0.083175,60171.0,60165.0,0.0004]
[1728582055114,0.083182,60166.0,60165.0,0.0004]
[1728582057014,0.084182,60166.0,60165.0,0.0034]
[1728582057610,0.444982,60166.0,60165.0,0.0034]
[1728582057808,0.444982,60166.0,60165.0,0.0174]
[1728582057809,0.445982,60166.0,60165.0,0.0174]
[1728582058008,0.085182,60166.0,60165.0,0.0174]
[1728582059009,0.085182,60166.0,60165.0,0.100583]
[1728582060210,0.002,60166.0,60165.0,0.100583]
[1728582060922,0.002,60166.0,60165.0,0.599223]
[1728582061116,0.002,60166.0,60165.0,0.100583]
[1728582061422,0.002,60166.0,60165.0,0.960023]
[1728582061807,0.19,60177.0,60165.0,1.47684]
[1728582062020,0.084171,60174.0,60173.0,0.083172]
[1728582062222,0.083171,60174.0,60173.0,0.393172]
[1728582062423,0.32144597,60180.0,60175.0,0.083169]
[1728582062623,0.19,60177.0,60175.0,0.3608]
[1728582062814,0.273169,60177.0,60176.0,0.083168]
[1728582063611,0.19,60177.0,60176.0,0.083168]
[1728582063818,0.274167,60177.0,60176.0,0.083168]
[1728582064013,0.274167,60177.0,60175.0,0.006]
[1728582064014,0.084168,60176.0,60175.0,0.006]
[1728582064823,0.179168,60176.0,60175.0,0.00596]
[1728582065614,0.179168,60176.0,60175.0,0.01096]
[1728582065817,0.179168,60176.0,60175.0,0.005]
[1728582066424,0.084168,60176.0,60175.0,0.094169]
[1728582067122,0.084168,60176.0,60175.0,0.011]
[1728582067509,0.176368,60176.0,60175.0,0.011]
[1728582068025,0.19286411,60176.0,60175.0,0.011]
[1728582068322,0.19286411,60176.0,60165.0,0.083583]
[1728582068323,0.083182,60166.0,60165.0,0.0004]
[1728582068616,0.273182,60166.0,60165.0,0.0004]
[1728582068821,0.273182,60166.0,60165.0,0.083583]
[1728582069610,0.274182,60166.0,60165.0,0.090583]
[1728582071126,0.275182,60166.0,60165.0,0.103583]
[1728582076734,0.192,60166.0,60165.0,0.103583]
[1728582077027,0.275182,60166.0,60165.0,0.103583]
[1728582077932,0.192,60166.0,60165.0,0.103583]
[1728582078135,0.002,60166.0,60165.0,0.51409336]
[1728582078326,0.083177,60170.0,60169.0,0.083173]
[1728582079327,0.083177,60170.0,60169.0,0.083133]
[1728582079524,0.084177,60170.0,60169.0,0.094133]
[1728582079721,0.085177,60170.0,60169.0,0.012]
[1728582080431,0.181977,60170.0,60169.0,0.012]
[1728582081334,0.181977,60170.0,60169.0,0.095178]
[1728582081837,0.181977,60170.0,60169.0,0.012]
[1728582082421,0.181977,60170.0,60169.0,0.06173539]
[1728582082727,0.181977,60170.0,60169.0,0.012]
[1728582089244,0.181977,60170.0,60169.0,0.07852419]
[1728582090141,0.085177,60170.0,60169.0,0.07852419]
[1728582090331,0.085177,60170.0,60169.0,0.16170219]
[1728582091638,0.085177,60170.0,60169.0,0.07852419]
[1728582092736,0.085177,60170.0,60169.0,0.012]
[1728582093132,0.085177,60170.0,60169.0,0.06189981]
[1728582093433,0.085177,60170.0,60169.0,0.012]
[1728582094543,0.085177,60170.0,60169.0,0.008]
[1728582094742,0.085177,60170.0,60169.0,0.009]
[1728582095339,0.273164,60179.0,60169.0,0.009]
[1728582095340,0.001,60182.0,60169.0,0.199]
[1728582095536,0.001,60182.0,60181.0,0.083161]
[1728582095834,0.36329348,60183.0,60182.0,0.08316]
[1728582096029,0.08565148,60183.0,60182.0,0.08316]
[1728582097138,0.08565148,60183.0,60181.0,0.0498601]
[1728582097139,0.08316,60182.0,60181.0,0.0498601]
[1728582097348,0.19,60182.0,60180.0,0.0498601]
[1728582097532,0.083161,60181.0,60180.0,0.0498601]
[1728582098339,0.19,60182.0,60179.0,0.1330231]
[1728582098642,0.083163,60180.0,60179.0,0.1330231]
[1728582099433,0.083163,60180.0,60179.0,0.083163]
[1728582100230,0.083163,60180.0,60179.0,0.13298893]
[1728582100634,0.083164,60179.0,60178.0,0.04982593]
[1728582100834,0.083165,60178.0,60177.0,0.04982593]
[1728582101031,0.083165,60178.0,60177.0,0.13299293]
[1728582101445,0.083165,60178.0,60177.0,0.083167]
[1728582102040,0.083165,60178.0,60177.0,0.13299293]
[1728582102238,0.084165,60178.0,60177.0,0.083167]
[1728582102642,0.085165,60178.0,60177.0,0.083167]
[1728582103445,0.002,60178.0,60177.0,0.083167]
[1728582104942,0.005,60178.0,60177.0,0.083167]
[1728582105250,0.008,60178.0,60177.0,0.083167]
[1728582105648,0.008,60178.0,60177.0,0.13299293]
[1728582105947,0.5588,60178.0,60177.0,0.04982593]
[1728582106147,0.083167,60177.0,60175.0,0.13299393]
[1728582106449,0.083168,60176.0,60175.0,0.13299393]
[1728582106644,0.5598,60178.0,60175.0,0.04981262]
[1728582106953,0.641965,60178.0,60177.0,0.083167]
[1728582107249,0.451965,60178.0,60177.0,0.083167]
[1728582107442,0.447965,60178.0,60177.0,0.083167]
[1728582107643,0.443965,60178.0,60177.0,0.083167]
[1728582107846,0.083165,60178.0,60177.0,0.083167]
[1728582108247,0.087165,60178.0,60177.0,0.083167]
[1728582108749,0.091165,60178.0,60177.0,0.083167]
[1728582109145,0.008,60178.0,60177.0,0.083167]
[1728582110251,0.00249288,60189.0,60188.0,0.083151]
[1728582111246,0.01649288,60189.0,60188.0,0.083151]
[1728582111446,0.03049288,60189.0,60188.0,0.084151]
[1728582112648,0.03049288,60189.0,60188.0,0.582591]
[1728582114651,0.11115,60189.0,60188.0,0.084151]
[1728582115448,0.11115,60189.0,60188.0,0.001]
[1728582115855,0.20055,60189.0,60188.0,0.001]
[1728582117151,1.05979,60189.0,60188.0,0.001]
[1728582117353,0.083169,60176.0,60175.0,0.083169]
[1728582117554,0.273169,60176.0,60175.0,0.083169]
[1728582118758,0.275169,60176.0,60175.0,0.083169]
[1728582118956,0.276169,60176.0,60175.0,0.083169]
[1728582123067,0.276169,60176.0,60168.0,0.36164]
[1728582123068,0.193,60176.0,60168.0,0.36164]
[1728582123371,0.083177,60171.0,60170.0,0.083173]
[1728582124264,0.001,60176.0,60175.0,0.083169]
[1728582124573,0.083158,60184.0,60175.0,0.273169]
[1728582124574,0.08316,60182.0,60175.0,0.273169]
[1728582124766,0.08316,60182.0,60181.0,0.083158]
[1728582126760,0.09116,60182.0,60181.0,0.084158]
[1728582127362,0.09916,60182.0,60181.0,0.085158]
[1728582127867,0.016,60182.0,60181.0,0.085158]
[1728582128065,0.09916,60182.0,60181.0,0.085158]
[1728582128463,0.016,60182.0,60181.0,0.085158]
[1728582128658,0.09916,60182.0,60181.0,0.085158]
[1728582130576,0.016,60182.0,60181.0,0.15168071]
[1728582131872,0.09916,60182.0,60181.0,0.15168071]
[1728582132277,0.016,60182.0,60181.0,0.15168071]
[1728582132475,0.016,60182.0,60181.0,0.085158]
[1728582132978,0.3608,60196.0,60195.0,0.083142]
[1728582133177,0.443941,60196.0,60195.0,0.083142]
[1728582133875,0.46008868,60196.0,60195.0,0.083142]
[1728582134081,0.083141,60196.0,60195.0,0.083142]
[1728582134281,0.083141,60196.0,60195.0,0.13292781]
[1728582134577,0.109141,60196.0,60195.0,0.13492781]
[1728582134778,0.026,60196.0,60195.0,0.13492781]
[1728582134974,0.026,60196.0,60195.0,0.085142]
[1728582135174,0.026,60196.0,60195.0,0.773502]
[1728582135372,0.026,60196.0,60195.0,1.373502]
[1728582135772,0.026,60196.0,60195.0,0.20220352]
[1728582135976,0.10914,60196.0,60195.0,0.15145736]
[1728582136166,0.10914,60196.0,60195.0,0.085142]
[1728582136474,0.10914,60196.0,60195.0,0.13488144]
[1728582136682,0.10914,60196.0,60195.0,0.085142]
[1728582138770,0.026,60196.0,60195.0,0.085142]
[1728582139065,0.026,60196.0,60195.0,1.43981736]
[1728582139281,0.00249233,60202.0,60195.0,1.43981736]
[1728582139467,0.00241233,60202.0,60201.0,0.273134]
[1728582140369,0.00241233,60202.0,60201.0,0.633934]
[1728582140370,0.00741233,60202.0,60201.0,0.633934]
[1728582140774,0.088132,60202.0,60201.0,0.083134]
[1728582141168,0.088132,60202.0,60201.0,0.084134]
[1728582141979,0.089132,60202.0,60201.0,0.084134]
[1728582142581,0.088132,60202.0,60201.0,0.084134]
[1728582142777,0.089132,60202.0,60201.0,0.085134]
[1728582143676,0.006,60202.0,60201.0,0.085134]
[1728582143871,0.16988941,60202.0,60201.0,0.085134]
[1728582144078,0.29375018,60202.0,60201.0,0.170534]
[1728582144587,0.12986077,60202.0,60201.0,0.18633325]
[1728582145387,0.12986077,60202.0,60201.0,0.68465325]
[1728582145882,0.12986077,60202.0,60201.0,1.28465325]
[1728582145883,0.0833028,60202.0,60201.0,1.28465325]
[1728582146086,0.03227405,60202.0,60201.0,0.68465325]
[1728582146383,0.03227405,60202.0,60201.0,1.28465325]
[1728582147685,0.03227405,60202.0,60201.0,0.68465325]
[1728582148686,0.1315842,60202.0,60201.0,1.28465325]
[1728582149188,0.1315842,60203.0,60202.0,0.083132]
[1728582149380,0.1315842,60203.0,60202.0,0.956532]
[1728582149685,0.50986499,60207.0,60206.0,0.083127]
[1728582149881,0.3608,60207.0,60206.0,0.083127]
[1728582150081,0.3608,60207.0,60202.0,0.0834]
[1728582150282,0.273131,60204.0,60201.0,0.001]
[1728582150488,0.083132,60202.0,60201.0,0.001]
[1728582150682,0.083132,60202.0,60201.0,0.083134]
[1728582151391,0.083132,60202.0,60201.0,0.084134]
[1728582151984,0.083131,60204.0,60200.0,0.3608]
[1728582152188,0.083131,60204.0,60203.0,0.083131]
[1728582154504,0.083131,60204.0,60203.0,0.084131]
[1728582154795,0.083091,60204.0,60203.0,0.084131]
[1728582155493,0.3608,60207.0,60206.0,0.083127]
[1728582155694,0.3608,60207.0,60206.0,0.273127]
[1728582156281,0.443925,60207.0,60206.0,0.273127]
[1728582156689,0.443925,60207.0,60206.0,0.274127]
[1728582156889,0.443925,60207.0,60206.0,0.084127]
[1728582157193,0.3608,60207.0,60206.0,0.084127]
[1728582157393,0.443925,60207.0,60206.0,0.085127]
[1728582158591,0.3608,60207.0,60206.0,0.085127]
[1728582159393,0.443925,60207.0,60206.0,0.085127]
[1728582159785,0.443925,60207.0,60206.0,0.002]
[1728582159986,0.443925,60207.0,60206.0,0.085127]
[1728582160286,0.518725,60207.0,60206.0,0.002]
[1728582161484,0.518725,60207.0,60206.0,0.085127]
[1728582162191,0.518725,60207.0,60206.0,0.002]
[1728582162394,0.518725,60207.0,60206.0,0.085127]
[1728582165695,0.3608,60207.0,60206.0,0.085127]
[1728582166385,0.0711,60213.0,60206.0,0.161527]
[1728582166590,0.11565325,60216.0,60208.0,0.19]
[1728582166802,0.083117,60213.0,60212.0,0.083116]
[1728582167885,0.083117,60213.0,60210.0,0.08305087]
[1728582168191,0.083121,60210.0,60209.0,0.47617087]
[1728582168393,0.083121,60210.0,60209.0,0.59505089]
[1728582168695,0.083121,60210.0,60209.0,0.59505325]
[1728582168892,0.083121,60210.0,60209.0,0.47617087]
[1728582169094,0.083121,60210.0,60209.0,0.16617087]
[1728582169293,0.083121,60210.0,60209.0,0.16717087]
[1728582170089,0.083121,60210.0,60209.0,0.16817087]
[1728582170589,0.083121,60210.0,60209.0,0.08512]
[1728582171689,0.083121,60210.0,60209.0,0.44592]
[1728582171893,0.083121,60210.0,60209.0,0.52897087]
[1728582175407,0.083121,60210.0,60209.0,0.6478664]
[1728582178003,0.09922534,60217.0,60216.0,0.083113]
[1728582178203,0.01611334,60217.0,60216.0,0.083113]
[1728582178396,0.083111,60217.0,60216.0,0.083113]
[1728582179098,0.083111,60218.0,60217.0,0.083111]
[1728582179302,0.083111,60218.0,60217.0,0.273111]
[1728582179501,0.083107,60221.0,60220.0,0.083102]
[1728582180696,0.09332268,60225.0,60220.0,0.273102]
[1728582180892,0.083103,60224.0,60223.0,0.083102]
[1728582181408,0.083103,60224.0,60223.0,0.13288663]
[1728582181899,0.083103,60224.0,60223.0,0.13388663]
[1728582182096,0.15590889,60224.0,60223.0,0.084102]
[1728582182400,0.2069246,60224.0,60223.0,0.084102]
[1728582182791,0.23162585,60224.0,60223.0,0.084102]
[1728582182994,0.2069246,60224.0,60223.0,0.084102]
[1728582183398,0.30437544,60224.0,60223.0,0.085102]
[1728582183602,0.35539115,60224.0,60223.0,0.085102]
[1728582184294,0.37198016,60224.0,60223.0,0.085102]
[1728582184804,0.2069246,60224.0,60223.0,0.085102]
[1728582185005,0.2068446,60224.0,60223.0,0.085102]
[1728582185208,0.2068446,60224.0,60223.0,0.002]
[1728582185406,0.2068446,60224.0,60209.0,0.083119]
[1728582185407,0.083122,60210.0,60209.0,0.083119]